Workbook

Sheet Zapas_sym
B2: Q | C2: 15 | D2: R | E2: 2 | G2: Kz | H2: 80 | I2: Ku | J2: 1.5 | K2: Kb | L2: 150
A3: Dzień | B3: Zapas pocz. ZP | C3: Dostawa Q | D3: Zapas po dostawie | E3: L.los. | F3: Zapotrz. P | G3: Sprzedaż | H3: Stracona sprz. | I3: Zapas końc. ZK | J3: L.los. | K3: Czas dostawy | L3: Dzień dostawy | M3: Koszt dostawy | N3: K. utrz. zapasu | O3: K. braku zapasu | P3: Koszty razem KR | S3: Zapotrzebowanie | T3: Dni | U3: Prawd. | V3: 0 | W3: Czas dostawy | X3: Dni | Y3: Prawd. | Z3: 0
A4: 1 | B4: 3 | C4: 0 | D4: =B4+C4 -> 3 | E4: =RAND() -> 0.5510697691 | F4: =INDEX($S$4:$S$9,MATCH(E4,$V$3:$V$9)) -> 1 | G4: =MIN(D4,F4) -> 1 | H4: =F4-G4 -> 0 | I4: =D4-G4 -> 2 | J4: =RAND() -> 0.02641185446 | K4: =IF(I4<=$E$2,INDEX($W$4:$W$7,MATCH(J4,$Z$3:$Z$7)),0) -> 1 | L4: =IF(K4>0, K4+A4,0) -> 2 | M4: =IF(C4>0,$H$2,0) -> 0 | N4: =I4*$J$2 -> 3 | O4: =H4*$L$2 -> 0 | P4: =M4+N4+O4 -> 3 | S4: 0 | T4: 45 | U4: =T4/T$10 -> 0.45 | V4: =U4 -> 0.45 | W4: 1 | X4: 20 | Y4: =X4/X$10 -> 0.2 | Z4: =Y4 -> 0.2
A5: =A4+1 -> 2 | B5: =I4 -> 2 | C5: =IF(A5=L4,$C$2,0)+IF(A5=L3,$C$2,0)+IF(A5=L2,$C$2,0)+IF(A5=L1,$C$2,0) -> 15 | D5: =B5+C5 -> 17 | E5: 0.7841512819 | F5: =INDEX($S$4:$S$9,MATCH(E5,$V$3:$V$9)) -> 2 | G5: =MIN(D5,F5) -> 2 | H5: =F5-G5 -> 0 | I5: =D5-G5 -> 15 | J5: 0.1656727502 | K5: =IF(AND(I5<=$E$2,A5>L4),INDEX($W$4:$W$7,MATCH(J5,$Z$3:$Z$7)),0) -> 0 | L5: =IF(K5>0, K5+A5,0) -> 0 | M5: =IF(C5>0,$H$2,0) -> 80 | N5: =I5*$J$2 -> 22.5 | O5: =H5*$L$2 -> 0 | P5: =M5+N5+O5 -> 102.5 | S5: 1 | T5: 20 | U5: 0.2 | V5: =V4+U5 -> 0.65 | W5: 2 | X5: 48 | Y5: =X5/X$10 -> 0.48 | Z5: =Z4+Y5 -> 0.68
A6: =A5+1 -> 3 | B6: =I5 -> 15 | C6: =IF(A6=L5,$C$2,0)+IF(A6=L4,$C$2,0)+IF(A6=L3,$C$2,0)+IF(A6=L2,$C$2,0) -> 0 | D6: 15 | E6: 0.4726613279 | F6: 1 | G6: 1 | H6: 0 | I6: 14 | J6: 0.7708433102 | K6: =IF(AND(I6<=$E$2,A6>L5,A6>L4),INDEX($W$4:$W$7,MATCH(J6,$Z$3:$Z$7)),0) -> 0 | L6: 0 | M6: 0 | N6: 21 | O6: 0 | P6: 21 | S6: 2 | T6: 15 | U6: 0.15 | V6: =V5+U6 -> 0.8 | W6: 3 | X6: 22 | Y6: =X6/X$10 -> 0.22 | Z6: =Z5+Y6 -> 0.9
A7: 4 | B7: 14 | C7: =IF(A7=L6,$C$2,0)+IF(A7=L5,$C$2,0)+IF(A7=L4,$C$2,0)+IF(A7=L3,$C$2,0) -> 0 | D7: 14 | E7: 0.4182037273 | F7: 0 | G7: 0 | H7: 0 | I7: 14 | J7: 0.6893643443 | K7: =IF(AND(I7<=$E$2,A7>L6,A7>L5,A7>L4),INDEX($W$4:$W$7,MATCH(J7,$Z$3:$Z$7)),0) -> 0 | L7: 0 | M7: =IF(C7>0,$H$2,0) -> 0 | N7: 21 | O7: 0 | P7: 21 | S7: 3 | T7: 10 | U7: 0.1 | V7: =V6+U7 -> 0.9 | W7: 4 | X7: 10 | Y7: =X7/X$10 -> 0.1 | Z7: =Z6+Y7 -> 1
A8: 5 | B8: 14 | C8: 0 | D8: 14 | E8: 0.6586913764 | F8: 2 | G8: 2 | H8: 0 | I8: 12 | J8: 0.09570033353 | K8: 0 | L8: 0 | M8: 0 | N8: 18 | O8: 0 | P8: 18 | S8: 4 | T8: 6 | U8: 0.06 | V8: =V7+U8 -> 0.96
A9: 6 | B9: 12 | C9: 0 | D9: 12 | E9: 0.6640071186 | F9: 2 | G9: 2 | H9: 0 | I9: 10 | J9: 0.4899833151 | K9: 0 | L9: 0 | M9: 0 | N9: 15 | O9: 0 | P9: 15 | S9: 5 | T9: 4 | U9: 0.04 | V9: =V8+U9 -> 1
A10: 7 | B10: 10 | C10: 0 | D10: 10 | E10: 0.9421673234 | F10: 4 | G10: 4 | H10: 0 | I10: 6 | J10: 0.8158708848 | K10: 0 | L10: 0 | M10: 0 | N10: 9 | O10: 0 | P10: 9 | S10: RAZEM | T10: =SUM(T4:T9) -> 100 | U10: =SUM(U4:U9) -> 1 | X10: =SUM(X4:X9) -> 100 | Y10: =SUM(Y4:Y9) -> 1
A11: 8 | B11: 6 | C11: 0 | D11: 6 | E11: 0.5486901859 | F11: 1 | G11: 1 | H11: 0 | I11: 5 | J11: 0.906509629 | K11: 0 | L11: 0 | M11: 0 | N11: 7.5 | O11: 0 | P11: 7.5
A12: 9 | B12: 5 | C12: 0 | D12: 5 | E12: 0.3669873866 | F12: 0 | G12: 0 | H12: 0 | I12: 5 | J12: 0.225504595 | K12: 0 | L12: 0 | M12: 0 | N12: 7.5 | O12: 0 | P12: 7.5
A13: 10 | B13: 5 | C13: 0 | D13: 5 | E13: 0.4628035545 | F13: 1 | G13: 1 | H13: 0 | I13: 4 | J13: 0.3834355162 | K13: 0 | L13: 0 | M13: 0 | N13: 6 | O13: 0 | P13: 6
A14: 11 | B14: 4 | C14: 0 | D14: 4 | E14: 0.7608141229 | F14: 2 | G14: 2 | H14: 0 | I14: 2 | J14: 0.8628469993 | K14: 3 | L14: 14 | M14: 0 | N14: 3 | O14: 0 | P14: 3
A15: 12 | B15: 2 | C15: 0 | D15: 2 | E15: 0.2856233587 | F15: 0 | G15: 0 | H15: 0 | I15: 2 | J15: 0.3173210378 | K15: 0 | L15: 0 | M15: 0 | N15: 3 | O15: 0 | P15: 3
A16: 13 | B16: 2 | C16: 0 | D16: 2 | E16: 0.5030509997 | F16: 1 | G16: 1 | H16: 0 | I16: 1 | J16: 0.09968526057 | K16: 0 | L16: 0 | M16: 0 | N16: 1.5 | O16: 0 | P16: 1.5
A17: 14 | B17: 1 | C17: 15 | D17: 16 | E17: 0.9216331883 | F17: 4 | G17: 4 | H17: 0 | I17: 12 | J17: 0.1212848331 | K17: 0 | L17: 0 | M17: 80 | N17: 18 | O17: 0 | P17: 98
A18: 15 | B18: 12 | C18: 0 | D18: 12 | E18: 0.1070982585 | F18: 0 | G18: 0 | H18: 0 | I18: 12 | J18: 0.401257031 | K18: 0 | L18: 0 | M18: 0 | N18: 18 | O18: 0 | P18: 18
A19: 16 | B19: 12 | C19: 0 | D19: 12 | E19: 0.450672664 | F19: 1 | G19: 1 | H19: 0 | I19: 11 | J19: 0.8174368036 | K19: 0 | L19: 0 | M19: 0 | N19: 16.5 | O19: 0 | P19: 16.5
A20: 17 | B20: 11 | C20: 0 | D20: 11 | E20: 0.1089663194 | F20: 0 | G20: 0 | H20: 0 | I20: 11 | J20: 0.9247466992 | K20: 0 | L20: 0 | M20: 0 | N20: 16.5 | O20: 0 | P20: 16.5
A21: 18 | B21: 11 | C21: 0 | D21: 11 | E21: 0.119248765 | F21: 0 | G21: 0 | H21: 0 | I21: 11 | J21: 0.3580536788 | K21: 0 | L21: 0 | M21: 0 | N21: 16.5 | O21: 0 | P21: =M21+N21+O21 -> 16.5
A22: =A21+1 -> 19 | B22: 11 | C22: 0 | D22: 11 | E22: 0.6389271064 | F22: 1 | G22: 1 | H22: 0 | I22: 10 | J22: 0.5406377072 | K22: 0 | L22: 0 | M22: 0 | N22: 15 | O22: 0 | P22: =M22+N22+O22 -> 15
A23: =A22+1 -> 20 | B23: 10 | C23: 0 | D23: 10 | E23: 0.3991154154 | F23: 0 | G23: 0 | H23: 0 | I23: 10 | J23: 0.5085256712 | K23: 0 | L23: 0 | M23: 0 | N23: 15 | O23: 0 | P23: =M23+N23+O23 -> 15
A24: =A23+1 -> 21 | B24: =I23 -> 10 | C24: =IF(A24=L23,$C$2,0)+IF(A24=L22,$C$2,0)+IF(A24=L21,$C$2,0)+IF(A24=L20,$C$2,0) -> 0 | D24: =B24+C24 -> 10 | E24: 0.01246224828 | F24: =INDEX($S$4:$S$9,MATCH(E24,$V$3:$V$9)) -> 0 | G24: =MIN(D24,F24) -> 0 | H24: =F24-G24 -> 0 | I24: =D24-G24 -> 10 | J24: 0.5009016858 | K24: 0 | L24: =IF(K24>0, K24+A24,0) -> 0 | M24: =IF(C24>0,$H$2,0) -> 0 | N24: 15 | O24: =H24*$L$2 -> 0 | P24: =M24+N24+O24 -> 15
A25: 22 | B25: 10 | C25: 0 | D25: 10 | E25: 0.726851483 | F25: 2 | G25: 2 | H25: 0 | I25: 8 | J25: 0.3011064547 | K25: 0 | L25: 0 | M25: 0 | N25: 12 | O25: 0 | P25: 12
A26: 23 | B26: 8 | C26: 0 | D26: 8 | E26: 0.9537666661 | F26: 4 | G26: 4 | H26: 0 | I26: 4 | J26: 0.7553351356 | K26: 0 | L26: 0 | M26: 0 | N26: 6 | O26: 0 | P26: 6
A27: 24 | B27: 4 | C27: 0 | D27: 4 | E27: 0.4196916832 | F27: 0 | G27: 0 | H27: 0 | I27: 4 | J27: 0.0214483779 | K27: 0 | L27: 0 | M27: 0 | N27: 6 | O27: 0 | P27: 6
A28: 25 | B28: 4 | C28: 0 | D28: 4 | E28: 0.2707462532 | F28: 0 | G28: 0 | H28: 0 | I28: 4 | J28: 0.5181238393 | K28: 0 | L28: 0 | M28: 0 | N28: 6 | O28: 0 | P28: 6
A29: 26 | B29: 4 | C29: 0 | D29: 4 | E29: 0.3387182969 | F29: 0 | G29: 0 | H29: 0 | I29: 4 | J29: 0.5317073277 | K29: 0 | L29: 0 | M29: 0 | N29: 6 | O29: 0 | P29: 6
A30: 27 | B30: 4 | C30: 0 | D30: 4 | E30: 0.2073174683 | F30: 0 | G30: 0 | H30: 0 | I30: 4 | J30: 0.3920928636 | K30: 0 | L30: 0 | M30: 0 | N30: 6 | O30: 0 | P30: 6
A31: 28 | B31: 4 | C31: 0 | D31: 4 | E31: 0.4373221405 | F31: 0 | G31: 0 | H31: 0 | I31: 4 | J31: 0.9805291738 | K31: 0 | L31: 0 | M31: 0 | N31: 6 | O31: 0 | P31: 6
A32: 29 | B32: 4 | C32: 0 | D32: 4 | E32: 0.2296898407 | F32: 0 | G32: 0 | H32: 0 | I32: 4 | J32: 0.5411555415 | K32: 0 | L32: 0 | M32: 0 | N32: 6 | O32: 0 | P32: 6
A33: 30 | B33: 4 | C33: 0 | D33: 4 | E33: 0.8349212185 | F33: 3 | G33: 3 | H33: 0 | I33: 1 | J33: 0.7996337469 | K33: 3 | L33: 33 | M33: 0 | N33: 1.5 | O33: 0 | P33: 1.5
A34: 31 | B34: 1 | C34: 0 | D34: 1 | E34: 0.58739798 | F34: 1 | G34: 1 | H34: 0 | I34: 0 | J34: 0.04121090813 | K34: 0 | L34: 0 | M34: 0 | N34: 0 | O34: 0 | P34: 0
A35: 32 | B35: 0 | C35: 0 | D35: 0 | E35: 0.02044505868 | F35: 0 | G35: 0 | H35: 0 | I35: 0 | J35: 0.8706883367 | K35: 0 | L35: 0 | M35: 0 | N35: 0 | O35: 0 | P35: 0
A36: 33 | B36: 0 | C36: 15 | D36: 15 | E36: 0.4863082973 | F36: 1 | G36: 1 | H36: 0 | I36: 14 | J36: 0.6561639172 | K36: 0 | L36: 0 | M36: 80 | N36: 21 | O36: 0 | P36: 101
A37: 34 | B37: 14 | C37: 0 | D37: 14 | E37: 0.8554293944 | F37: 3 | G37: 3 | H37: 0 | I37: 11 | J37: 0.3844484192 | K37: 0 | L37: 0 | M37: 0 | N37: 16.5 | O37: 0 | P37: 16.5
A38: 35 | B38: 11 | C38: 0 | D38: 11 | E38: 0.7901854146 | F38: 2 | G38: 2 | H38: 0 | I38: 9 | J38: 0.9938596187 | K38: 0 | L38: 0 | M38: 0 | N38: 13.5 | O38: 0 | P38: 13.5
A39: 36 | B39: 9 | C39: 0 | D39: 9 | E39: 0.4062448885 | F39: 0 | G39: 0 | H39: 0 | I39: 9 | J39: 0.7641878909 | K39: =IF(AND(I39<=$E$2,A39>L38,A39>L37,A39>L36),INDEX($W$4:$W$7,MATCH(J39,$Z$3:$Z$7)),0) -> 0 | L39: 0 | M39: 0 | N39: 13.5 | O39: 0 | P39: 13.5
A40: 37 | B40: 9 | C40: 0 | D40: 9 | E40: 0.3591353612 | F40: 0 | G40: 0 | H40: 0 | I40: 9 | J40: 0.2626109483 | K40: 0 | L40: 0 | M40: 0 | N40: 13.5 | O40: 0 | P40: 13.5
A41: 38 | B41: 9 | C41: 0 | D41: 9 | E41: 0.6803179237 | F41: 2 | G41: 2 | H41: 0 | I41: 7 | J41: 0.1141100875 | K41: 0 | L41: 0 | M41: 0 | N41: 10.5 | O41: 0 | P41: 10.5
A42: 39 | B42: 7 | C42: 0 | D42: 7 | E42: 0.5095992132 | F42: 1 | G42: 1 | H42: 0 | I42: 6 | J42: 0.4489979942 | K42: 0 | L42: 0 | M42: 0 | N42: 9 | O42: 0 | P42: 9
A43: 40 | B43: 6 | C43: 0 | D43: 6 | E43: 0.5226577288 | F43: 1 | G43: 1 | H43: 0 | I43: 5 | J43: 0.6383253864 | K43: 0 | L43: 0 | M43: 0 | N43: 7.5 | O43: 0 | P43: 7.5
A44: 41 | B44: 5 | C44: 0 | D44: 5 | E44: 0.306021124 | F44: 0 | G44: 0 | H44: 0 | I44: 5 | J44: 0.3915740408 | K44: 0 | L44: 0 | M44: 0 | N44: 7.5 | O44: 0 | P44: 7.5
A45: 42 | B45: 5 | C45: 0 | D45: 5 | E45: 0.2189878732 | F45: 0 | G45: 0 | H45: 0 | I45: 5 | J45: 0.6590819534 | K45: 0 | L45: 0 | M45: 0 | N45: 7.5 | O45: 0 | P45: 7.5
A46: 43 | B46: 5 | C46: 0 | D46: 5 | E46: 0.5245477872 | F46: 1 | G46: 1 | H46: 0 | I46: 4 | J46: 0.8972024756 | K46: 0 | L46: 0 | M46: 0 | N46: 6 | O46: 0 | P46: 6
A47: 44 | B47: 4 | C47: 0 | D47: 4 | E47: 0.9451124261 | F47: 4 | G47: 4 | H47: 0 | I47: 0 | J47: 0.9599956029 | K47: 4 | L47: 48 | M47: 0 | N47: 0 | O47: 0 | P47: 0
A48: 45 | B48: 0 | C48: 0 | D48: 0 | E48: 0.2953238148 | F48: 0 | G48: 0 | H48: 0 | I48: 0 | J48: 0.5547069231 | K48: 0 | L48: 0 | M48: 0 | N48: 0 | O48: 0 | P48: 0
A49: 46 | B49: 0 | C49: 0 | D49: 0 | E49: 0.1830514336 | F49: 0 | G49: 0 | H49: 0 | I49: 0 | J49: 0.3183845081 | K49: 0 | L49: 0 | M49: 0 | N49: 0 | O49: 0 | P49: 0
A50: 47 | B50: 0 | C50: 0 | D50: 0 | E50: 0.578909351 | F50: 1 | G50: 0 | H50: 1 | I50: 0 | J50: 0.91414514 | K50: 0 | L50: 0 | M50: 0 | N50: 0 | O50: 150 | P50: 150
A51: 48 | B51: 0 | C51: 15 | D51: 15 | E51: 0.6633674475 | F51: 2 | G51: 2 | H51: 0 | I51: 13 | J51: 0.7112038741 | K51: 0 | L51: 0 | M51: 80 | N51: 19.5 | O51: 0 | P51: 99.5
A52: 49 | B52: 13 | C52: 0 | D52: 13 | E52: 0.2080244064 | F52: 0 | G52: 0 | H52: 0 | I52: 13 | J52: 0.9970611104 | K52: 0 | L52: 0 | M52: 0 | N52: 19.5 | O52: 0 | P52: 19.5
A53: 50 | B53: 13 | C53: 0 | D53: 13 | E53: 0.1368993237 | F53: 0 | G53: 0 | H53: 0 | I53: 13 | J53: 0.8407271955 | K53: 0 | L53: 0 | M53: 0 | N53: 19.5 | O53: 0 | P53: 19.5
A54: 51 | B54: 13 | C54: 0 | D54: 13 | E54: 0.537598671 | F54: 1 | G54: 1 | H54: 0 | I54: 12 | J54: 0.2057042589 | K54: 0 | L54: 0 | M54: 0 | N54: 18 | O54: 0 | P54: 18
A55: 52 | B55: 12 | C55: 0 | D55: 12 | E55: 0.664273593 | F55: 2 | G55: 2 | H55: 0 | I55: 10 | J55: 0.08561526269 | K55: 0 | L55: 0 | M55: 0 | N55: 15 | O55: 0 | P55: 15
A56: 53 | B56: 10 | C56: 0 | D56: 10 | E56: 0.08046069785 | F56: 0 | G56: 0 | H56: 0 | I56: 10 | J56: 0.689204898 | K56: 0 | L56: 0 | M56: 0 | N56: 15 | O56: 0 | P56: 15
A57: 54 | B57: 10 | C57: 0 | D57: 10 | E57: 0.0003614524099 | F57: 0 | G57: 0 | H57: 0 | I57: 10 | J57: 0.6542178173 | K57: 0 | L57: 0 | M57: 0 | N57: 15 | O57: 0 | P57: 15
A58: 55 | B58: 10 | C58: 0 | D58: 10 | E58: 0.5059934345 | F58: 1 | G58: 1 | H58: 0 | I58: 9 | J58: 0.4496966812 | K58: 0 | L58: 0 | M58: 0 | N58: 13.5 | O58: 0 | P58: 13.5
A59: 56 | B59: 9 | C59: 0 | D59: 9 | E59: 0.8951956935 | F59: 3 | G59: 3 | H59: 0 | I59: 6 | J59: 0.5625774536 | K59: 0 | L59: 0 | M59: 0 | N59: 9 | O59: 0 | P59: 9
A60: 57 | B60: 6 | C60: 0 | D60: 6 | E60: 0.5335329246 | F60: 1 | G60: 1 | H60: 0 | I60: 5 | J60: 0.6533373699 | K60: 0 | L60: 0 | M60: 0 | N60: 7.5 | O60: 0 | P60: 7.5
A61: 58 | B61: 5 | C61: 0 | D61: 5 | E61: 0.3037037613 | F61: 0 | G61: 0 | H61: 0 | I61: 5 | J61: 0.07328960438 | K61: 0 | L61: 0 | M61: 0 | N61: 7.5 | O61: 0 | P61: 7.5
A62: 59 | B62: 5 | C62: 0 | D62: 5 | E62: 0.7956342828 | F62: 2 | G62: 2 | H62: 0 | I62: 3 | J62: 0.3886861626 | K62: 0 | L62: 0 | M62: 0 | N62: 4.5 | O62: 0 | P62: 4.5
A63: 60 | B63: 3 | C63: 0 | D63: 3 | E63: 0.7886065365 | F63: 2 | G63: 2 | H63: 0 | I63: 1 | J63: 0.6607808405 | K63: 2 | L63: 62 | M63: 0 | N63: 1.5 | O63: 0 | P63: 1.5
A64: 61 | B64: 1 | C64: 0 | D64: 1 | E64: 0.4896681543 | F64: 1 | G64: 1 | H64: 0 | I64: 0 | J64: 0.9349227417 | K64: 0 | L64: 0 | M64: 0 | N64: 0 | O64: 0 | P64: 0
A65: 62 | B65: 0 | C65: 15 | D65: 15 | E65: 0.6741578295 | F65: 2 | G65: 2 | H65: 0 | I65: 13 | J65: 0.2378467898 | K65: 0 | L65: 0 | M65: 80 | N65: 19.5 | O65: 0 | P65: 99.5
A66: 63 | B66: 13 | C66: 0 | D66: 13 | E66: 0.4168839762 | F66: 0 | G66: 0 | H66: 0 | I66: 13 | J66: 0.1810798522 | K66: 0 | L66: 0 | M66: 0 | N66: 19.5 | O66: 0 | P66: 19.5
A67: 64 | B67: 13 | C67: 0 | D67: 13 | E67: 0.5742414728 | F67: 1 | G67: 1 | H67: 0 | I67: 12 | J67: 0.2745163404 | K67: 0 | L67: 0 | M67: 0 | N67: 18 | O67: 0 | P67: 18
A68: 65 | B68: 12 | C68: 0 | D68: 12 | E68: =RAND() -> 0.4684864274 | F68: 1 | G68: 1 | H68: 0 | I68: 11 | J68: =RAND() -> 0.8935772064 | K68: 0 | L68: 0 | M68: 0 | N68: 16.5 | O68: 0 | P68: 16.5
A69: 66 | B69: 11 | C69: 0 | D69: 11 | E69: 0.3796335307 | F69: 0 | G69: 0 | H69: 0 | I69: 11 | J69: 0.700789799 | K69: 0 | L69: 0 | M69: 0 | N69: =I69*$J$2 -> 16.5 | O69: 0 | P69: 16.5
A70: 67 | B70: 11 | C70: 0 | D70: 11 | E70: 0.6874063596 | F70: 2 | G70: 2 | H70: 0 | I70: 9 | J70: 0.8700741063 | K70: 0 | L70: 0 | M70: 0 | N70: 13.5 | O70: 0 | P70: 13.5
A71: 68 | B71: 9 | C71: 0 | D71: 9 | E71: 0.4359863888 | F71: 0 | G71: 0 | H71: 0 | I71: 9 | J71: 0.6842806199 | K71: =IF(AND(I71<=$E$2,A71>L70,A71>L69,A71>L68),INDEX($W$4:$W$7,MATCH(J71,$Z$3:$Z$7)),0) -> 0 | L71: 0 | M71: 0 | N71: 13.5 | O71: 0 | P71: 13.5
A72: 69 | B72: 9 | C72: 0 | D72: 9 | E72: 0.1452747862 | F72: 0 | G72: 0 | H72: 0 | I72: 9 | J72: 0.8768041972 | K72: 0 | L72: 0 | M72: 0 | N72: 13.5 | O72: 0 | P72: 13.5
A73: 70 | B73: 9 | C73: 0 | D73: 9 | E73: 0.2083248523 | F73: 0 | G73: 0 | H73: 0 | I73: 9 | J73: 0.009183808498 | K73: 0 | L73: 0 | M73: 0 | N73: 13.5 | O73: 0 | P73: 13.5
A74: 71 | B74: 9 | C74: 0 | D74: 9 | E74: 0.06215171149 | F74: 0 | G74: 0 | H74: 0 | I74: 9 | J74: 0.0825027106 | K74: 0 | L74: 0 | M74: 0 | N74: 13.5 | O74: 0 | P74: 13.5
A75: 72 | B75: 9 | C75: 0 | D75: 9 | E75: 0.5036238795 | F75: 1 | G75: 1 | H75: 0 | I75: 8 | J75: 0.8955364726 | K75: 0 | L75: 0 | M75: 0 | N75: 12 | O75: 0 | P75: 12
A76: 73 | B76: 8 | C76: 0 | D76: 8 | E76: 0.1048448881 | F76: 0 | G76: 0 | H76: 0 | I76: 8 | J76: 0.7497547737 | K76: 0 | L76: 0 | M76: 0 | N76: 12 | O76: 0 | P76: 12
A77: 74 | B77: 8 | C77: 0 | D77: 8 | E77: 0.06184883082 | F77: 0 | G77: 0 | H77: 0 | I77: 8 | J77: 0.0695558031 | K77: 0 | L77: 0 | M77: 0 | N77: 12 | O77: 0 | P77: 12
A78: 75 | B78: 8 | C78: 0 | D78: 8 | E78: 0.07023198203 | F78: 0 | G78: 0 | H78: 0 | I78: 8 | J78: 0.3917252683 | K78: 0 | L78: 0 | M78: 0 | N78: 12 | O78: 0 | P78: 12
A79: 76 | B79: 8 | C79: 0 | D79: 8 | E79: 0.1684461037 | F79: 0 | G79: 0 | H79: 0 | I79: 8 | J79: 0.567929286 | K79: 0 | L79: 0 | M79: 0 | N79: 12 | O79: 0 | P79: 12
A80: 77 | B80: 8 | C80: 0 | D80: 8 | E80: 0.4076411644 | F80: 0 | G80: 0 | H80: 0 | I80: 8 | J80: 0.6096240016 | K80: 0 | L80: 0 | M80: 0 | N80: 12 | O80: 0 | P80: 12
A81: 78 | B81: 8 | C81: 0 | D81: 8 | E81: 0.2367760464 | F81: 0 | G81: 0 | H81: 0 | I81: 8 | J81: 0.6308224046 | K81: 0 | L81: 0 | M81: 0 | N81: 12 | O81: 0 | P81: 12
A82: 79 | B82: 8 | C82: 0 | D82: 8 | E82: 0.2268164968 | F82: 0 | G82: 0 | H82: 0 | I82: 8 | J82: 0.4986825625 | K82: 0 | L82: 0 | M82: 0 | N82: 12 | O82: 0 | P82: 12
A83: 80 | B83: 8 | C83: 0 | D83: 8 | E83: 0.2713923023 | F83: 0 | G83: 0 | H83: 0 | I83: 8 | J83: 0.4820444499 | K83: 0 | L83: 0 | M83: 0 | N83: 12 | O83: 0 | P83: 12
A84: 81 | B84: 8 | C84: 0 | D84: 8 | E84: 0.3787334401 | F84: 0 | G84: 0 | H84: 0 | I84: 8 | J84: 0.312355634 | K84: 0 | L84: 0 | M84: 0 | N84: 12 | O84: 0 | P84: 12
A85: 82 | B85: 8 | C85: 0 | D85: 8 | E85: 0.5362077921 | F85: 1 | G85: 1 | H85: 0 | I85: 7 | J85: 0.8260027483 | K85: 0 | L85: 0 | M85: 0 | N85: 10.5 | O85: 0 | P85: 10.5
A86: 83 | B86: 7 | C86: 0 | D86: 7 | E86: 0.6113850899 | F86: 1 | G86: 1 | H86: 0 | I86: 6 | J86: 0.7967936534 | K86: 0 | L86: 0 | M86: 0 | N86: 9 | O86: 0 | P86: 9
A87: 84 | B87: 6 | C87: 0 | D87: 6 | E87: 0.03552879878 | F87: 0 | G87: 0 | H87: 0 | I87: 6 | J87: 0.1819918692 | K87: 0 | L87: 0 | M87: 0 | N87: 9 | O87: 0 | P87: 9
A88: =A87+1 -> 85 | B88: =I87 -> 6 | C88: =IF(A88=L87,$C$2,0)+IF(A88=L86,$C$2,0)+IF(A88=L85,$C$2,0)+IF(A88=L84,$C$2,0) -> 0 | D88: =B88+C88 -> 6 | E88: 0.6599461399 | F88: =INDEX($S$4:$S$9,MATCH(E88,$V$3:$V$9)) -> 2 | G88: =MIN(D88,F88) -> 2 | H88: =F88-G88 -> 0 | I88: =D88-G88 -> 4 | J88: 0.7322878597 | K88: 0 | L88: =IF(K88>0, K88+A88,0) -> 0 | M88: =IF(C88>0,$H$2,0) -> 0 | N88: 6 | O88: =H88*$L$2 -> 0 | P88: =M88+N88+O88 -> 6
A89: 86 | B89: 4 | C89: 0 | D89: 4 | E89: 0.4035433352 | F89: 0 | G89: 0 | H89: 0 | I89: 4 | J89: 0.9179126703 | K89: 0 | L89: 0 | M89: 0 | N89: 6 | O89: 0 | P89: 6
A90: 87 | B90: 4 | C90: 0 | D90: 4 | E90: 0.5389152112 | F90: 1 | G90: 1 | H90: 0 | I90: 3 | J90: 0.4452270393 | K90: 0 | L90: 0 | M90: 0 | N90: 4.5 | O90: 0 | P90: 4.5
A91: 88 | B91: 3 | C91: 0 | D91: 3 | E91: 0.8502187778 | F91: 3 | G91: 3 | H91: 0 | I91: 0 | J91: 0.4191221373 | K91: 2 | L91: 90 | M91: 0 | N91: 0 | O91: 0 | P91: 0
A92: 89 | B92: 0 | C92: 0 | D92: 0 | E92: 0.882993675 | F92: 3 | G92: 0 | H92: 3 | I92: 0 | J92: 0.04110104626 | K92: 0 | L92: 0 | M92: 0 | N92: 0 | O92: 450 | P92: 450
A93: 90 | B93: 0 | C93: 15 | D93: 15 | E93: 0.7632153227 | F93: 2 | G93: 2 | H93: 0 | I93: 13 | J93: 0.4909982344 | K93: 0 | L93: 0 | M93: 80 | N93: 19.5 | O93: 0 | P93: 99.5
A94: 91 | B94: 13 | C94: 0 | D94: 13 | E94: 0.05026394822 | F94: 0 | G94: 0 | H94: 0 | I94: 13 | J94: 0.0743571713 | K94: 0 | L94: 0 | M94: 0 | N94: 19.5 | O94: 0 | P94: 19.5
A95: 92 | B95: 13 | C95: 0 | D95: 13 | E95: 0.3274951058 | F95: 0 | G95: 0 | H95: 0 | I95: 13 | J95: 0.6173319828 | K95: 0 | L95: 0 | M95: 0 | N95: 19.5 | O95: 0 | P95: 19.5
A96: 93 | B96: 13 | C96: 0 | D96: 13 | E96: 0.5484871581 | F96: 1 | G96: 1 | H96: 0 | I96: 12 | J96: 0.4323333857 | K96: 0 | L96: 0 | M96: 0 | N96: 18 | O96: 0 | P96: 18
A97: 94 | B97: 12 | C97: 0 | D97: 12 | E97: 0.671669434 | F97: 2 | G97: 2 | H97: 0 | I97: 10 | J97: 0.1298349245 | K97: 0 | L97: 0 | M97: 0 | N97: 15 | O97: 0 | P97: 15
A98: 95 | B98: 10 | C98: 0 | D98: 10 | E98: 0.544452245 | F98: 1 | G98: 1 | H98: 0 | I98: 9 | J98: 0.623023808 | K98: 0 | L98: 0 | M98: 0 | N98: 13.5 | O98: 0 | P98: 13.5
A99: 96 | B99: 9 | C99: 0 | D99: 9 | E99: 0.8407928994 | F99: 3 | G99: 3 | H99: 0 | I99: 6 | J99: 0.2786897299 | K99: 0 | L99: 0 | M99: 0 | N99: 9 | O99: 0 | P99: 9
A100: 97 | B100: 6 | C100: 0 | D100: 6 | E100: 0.9833100893 | F100: 5 | G100: 5 | H100: 0 | I100: 1 | J100: 0.5148968767 | K100: 2 | L100: 99 | M100: 0 | N100: 1.5 | O100: 0 | P100: 1.5
A101: 98 | B101: 1 | C101: 0 | D101: 1 | E101: 0.8272839266 | F101: 3 | G101: 1 | H101: 2 | I101: 0 | J101: 0.9105028034 | K101: 0 | L101: 0 | M101: 0 | N101: 0 | O101: 300 | P101: 300
A102: 99 | B102: 0 | C102: 15 | D102: 15 | E102: 0.261459345 | F102: 0 | G102: 0 | H102: 0 | I102: 15 | J102: 0.07494004998 | K102: 0 | L102: 0 | M102: 80 | N102: 22.5 | O102: 0 | P102: 102.5
A103: 100 | B103: 15 | C103: 0 | D103: 15 | E103: 0.1057985017 | F103: 0 | G103: 0 | H103: 0 | I103: 15 | J103: 0.2646295403 | K103: =IF(AND(I103<=$E$2,A103>L102,A103>L101,A103>L100),INDEX($W$4:$W$7,MATCH(J103,$Z$3:$Z$7)),0) -> 0 | L103: 0 | M103: 0 | N103: 22.5 | O103: 0 | P103: 22.5
A104: Razem | M104: =SUM(M4:M103) -> 560 | N104: =SUM(N4:N103) -> 1098 | O104: =SUM(O4:O103) -> 900 | P104: 3191
A105: 1 | B105: 2 | C105: 3 | D105: 4 | E105: 5 | F105: 6 | G105: 7 | H105: 8 | I105: 9 | J105: 10 | K105: 11 | L105: 12 | M105: 13 | N105: 14 | O105: 15 | P105: 16
A108: Wyniki badań (każda grupa bada inne pary [Q,R])
A110: Q | B110: 10 | C110: 15
A111: R | B111: 5 | C111: 2
A112: 1 | B112: 2168 | C112: 2842.5
A113: 2 | B113: 3595.5 | C113: 3191
A114: 3
A115: 4
A116: 5
A117: 6
A118: 7
A119: 8
A120: 9
A121: 10
A122: 11
A123: 12
A124: 13
A125: 14
A126: 15
A127: 16
A128: 17
A129: 18
A130: 19
A131: 20
A132: 21
A133: 22
A134: 23
A135: 24
A136: 25
A137: 26
A138: 27
A139: 28
A140: 29
A141: 30
A142: 31
A143: 32
A144: 33
A145: 34
A146: 35
A147: 36
A148: 37
A149: 38
A150: 39
A151: 40
A152: 41
A153: 42
A154: 43
A155: 44
A156: 45
A157: 46
A158: 47
A159: 48
A160: 49
A161: 50
A162: średnia | B162: =AVERAGE(B112:B161) -> 2881.75 | C162: =AVERAGE(C112:C161) -> 3016.75
A163: od.st | B163: =STDEV(B112:B161) -> 1009.39493 | C163: =STDEV(C112:C161) -> 246.4267132
A165: Testy statystyczne i interpretacja wyników

Sheet Arkusz16
